Cogmind - Beta 10 @@@ ROGUE MODE // 2020.09.19 @ 01:13:11 Player: DBrickShaw Result: Destroyed by S-27 Virus with Autogun Performance ------------- Evolutions (3) 1500 Regions Visited (5) 1000 Robots Destroyed (41) 205 Value Destroyed (496) 496 Prototype IDs (3) 60 Alien Tech Used (0) 0 Bonus (4) 4 TOTAL SCORE: 3265 Bonus ------- High Alert Combat Kills 4 Cogmind --------- Core Integrity 0/700 Matter 183/300 Energy 100/100 System Corruption 0% Temperature Cool (0) Movement Core (50) Location -7/Factory Parts ------- > --- POWER (2) -------- (None) > --- PROPULSION (3) --- (None) > --- UTILITY (5) ------ (None) > --- WEAPON (3) ------- (None) > --- INVENTORY (4) ---- Hardlight Generator Shock Rifle Beam Rifle Peak State ------------ > --- POWER ------------ Ion Engine > --- PROPULSION ------- Advanced Treads Advanced Treads Advanced Treads > --- UTILITY ---------- Small Storage Unit Visual Processing Unit Signal Interpreter > --- WEAPON ----------- Shock Rifle Shock Rifle > --- INVENTORY -------- Ion Engine Advanced Treads Beam Rifle Assault Rifle Grenade Launcher Grenade Launcher [Rating: 20] Favorites ----------- Power Ion Engine Engine Ion Engine Propulsion Advanced Treads Treads Advanced Treads Wheel Wheel Utility Small Storage Unit Device Improved Terrain Scanner Storage Small Storage Unit Processor Visual Processing Unit Protection Light Armor Plating Weapon Assault Rifle Energy Gun Shock Rifle Ballistic Gun Assault Rifle Ballistic Cannon Assault Cannon Launcher Grenade Launcher Build | -11 -10 -9 -9 -8 -7 ------- Run | Scr Mat Mat Min Mat Fac Slots Evolved 6 | . . 2 . 2 2 Power 1 | . . . . 1 . Propulsion 1 | . . 1 . . . Utility 3 | . . 1 . . 2 Weapon 1 | . . . . 1 . Parts Attached 38 | 9 7 13 6 1 2 Power 3 | 1 1 . 1 . . Engine 3 | 1 1 . 1 . . Core . | . . . . . . Reactor . | . . . . . . Propulsion 10 | 3 . 4 2 . 1 Treads 5 | . . 3 2 . . Leg . | . . . . . . Wheel 5 | 3 . 1 . . 1 Hover . | . . . . . . Flight . | . . . . . . Utility 10 | 3 3 3 . 1 . Device 2 | 1 . . . 1 . Storage 3 | 1 2 . . . . Processor 4 | 1 . 3 . . . Hackware . | . . . . . . Protection 1 | . 1 . . . . Artifact . | . . . . . . Weapon 15 | 2 3 6 3 . 1 Energy Gun 7 | 1 1 4 1 . . Energy Cannon . | . . . . . . Ballistic Gun 2 | 1 1 . . . . Ballistic Cannon 1 | . . . . . 1 Launcher 5 | . 1 2 2 . . Special Weapon . | . . . . . . Impact Weapon . | . . . . . . Slashing Weapon . | . . . . . . Piercing Weapon . | . . . . . . Special Melee Weapon . | . . . . . . Unidentified Prototypes 1 | . . 1 . . . Parts Lost 11 | . . 1 7 1 2 Power 2 | . . . 2 . . Propulsion 4 | . . . 2 1 1 Utility 1 | . . 1 . . . Weapon 4 | . . . 3 . 1 Highest Loss Streak 7 | . . 1 7 1 2 Average Slot Usage (%) 75 | . 100 94 46 6 7 Engine 9 | . 14 11 4 . . Treads 12 | . . 29 19 6 . Wheel 11 | . 28 3 . . 2 Device 2 | . 6 . . . . Storage 9 | . 14 11 4 . . Processor 6 | . . 14 9 . . Protection 3 | . 7 2 . . . Energy Gun 7 | . 3 17 4 . . Ballistic Gun 9 | . 23 2 . . . Launcher 1 | . . 1 3 . . Naked Turns 57 | . . . 1 24 32 Heaviest Build 42 | 13 42 17 15 5 5 Greatest Support 66 | 26 20 66 66 3 10 Greatest Overweight (x) 2 | . 2 . . 1 1 Average Overweight (x) . | . . . . . . Largest Inventory Capacity 12 | 6 12 6 6 4 4 Average Capacity 5 | 5 6 6 4 4 4 Most Carried 6 | 6 6 6 6 4 4 Average Carried 5 | 4 5 5 4 3 3 Final Capacity 6 | 6 6 6 4 4 4 Final Carried 6 | 6 6 6 3 4 3 Class Distribution -------------------- 100% | Mutant Dominant Class ---------------- Mutant | -10/Materials Mutant | -9/Materials Mutant | -9/Mines Mutant | -8/Materials Mutant | -7/Factory Resources | -11 -10 -9 -9 -8 -7 ----------- Run | Scr Mat Mat Min Mat Fac Matter Collected 729 | 314 224 147 15 . 29 Remotely . | . . . . . . Salvage Created 984 | 164 310 482 25 . 3 Parts 61 | 9 20 31 . . 1 Haulers Intercepted 3 | . 1 2 . . . Recyclers Shooed 2 | . 2 . . . . Parts Field Recycled . | . . . . . . Retrieved Matter . | . . . . . . Parts Self-Destructed . | . . . . . . Prevented . | . . . . . . Kills | -11 -10 -9 -9 -8 -7 ------- Run | Scr Mat Mat Min Mat Fac Combat Hostiles Destroyed 25 | . 7 10 8 . . Guns 9 | . 4 5 . . . AOE 16 | . 3 5 8 . . Classes Destroyed 10 | 2 3 4 1 . . Worker 3 | . . 2 . . 1 Builder 1 | . . 1 . . . Tunneler 3 | 3 . . . . . Hauler 3 | . 1 2 . . . Recycler 3 | 1 1 1 . . . Operator 1 | . . 1 . . . Watcher 2 | . . 2 . . . Swarmer 9 | . 3 6 . . . Grunt 8 | . 4 4 . . . Assembled 8 | . . . 8 . . Best Kill Streak 8 | 2 3 7 8 . 1 Combat Bots Only 8 | . 3 4 8 . . Max Kills in Single Turn 4 | 1 2 2 4 . 1 Gunslinging . | . . . . . . Exploded 4 | . 2 2 4 . . Melee . | . . . . . . Uniques/NPCs Destroyed . | . . . . . . Combat | -11 -10 -9 -9 -8 -7 -------- Run | Scr Mat Mat Min Mat Fac Damage Taken 2758 | . 329 264 980 273 912 Core 1238 | . 31 56 227 215 709 Absorbed by Shields . | . . . . . . Core Remaining (%) 69 | 100 87 . 29 60 . Volleys Fired 77 | 8 31 30 6 . 2 Largest 2 | 2 2 2 2 . 1 Hottest 100 | 60 40 100 100 . 44 Shots Fired 137 | 16 60 51 8 . 2 Gun 120 | 16 58 42 4 . . Cannon 2 | . . . . . 2 Launcher 15 | . 2 9 4 . . Special . | . . . . . . Kinetic 69 | 8 58 1 . . 2 Thermal 9 | 8 . 1 . . . Explosive 15 | . 2 9 4 . . Electromagnetic 44 | . . 40 4 . . Robot Hit Streak 7 | 5 7 6 3 . 4 Robot Miss Streak 3 | 1 3 3 3 . . Penetration Max . | . . . . . . Secondary Targets 1 | . 1 . . . . Max Gunslinging Chain 1 | . 1 . . . . Shots Hit Robots 82 | 10 38 27 5 . 2 Core Hits 62 | 5 15 25 16 . 1 Critical Hits . | . . . . . . Critical Kills . | . . . . . . Critical Parts Destroyed . | . . . . . . Melee Attacks . | . . . . . . Impact . | . . . . . . Slashing . | . . . . . . Piercing . | . . . . . . Sneak Attacks . | . . . . . . Combat Hostiles . | . . . . . . Follow-up Attacks . | . . . . . . Damage Inflicted 2299 | 133 555 1031 528 . 52 Guns 1128 | 133 443 506 46 . . Cannons 52 | . . . . . 52 Explosions 1119 | . 112 525 482 . . Melee . | . . . . . . Ramming . | . . . . . . Kinetic 552 | 46 443 11 . . 52 Thermal 186 | 87 . 99 . . . Explosive 1020 | . 112 426 482 . . Electromagnetic 541 | . . 495 46 . . Impact . | . . . . . . Slashing . | . . . . . . Piercing . | . . . . . . Highest Corruption . | . . . . . . Average Corruption . | . . . . . . Corruption Purged . | . . . . . . Overload Shots . | . . . . . . Overflow Damage 34 | . . 14 20 . . Projectiles . | . . . . . . Explosions 34 | . . 14 20 . . Melee . | . . . . . . Knockbacks 1 | . . . . . 1 Impact . | . . . . . . Kinetic 1 | . . . . . 1 Secondary . | . . . . . . Self-Inflicted Damage 122 | . . 59 63 . . Shots 4 | . . 2 2 . . Rammed . | . . . . . . Targets Rammed . | . . . . . . Kicked . | . . . . . . Crushed . | . . . . . . Highest Temperature 209 | . 6 192 209 . 10 Average Temperature 60 | . 2 67 99 . 10 Received Heat Transfer 621 | . 168 45 300 108 . Siege Activations . | . . . . . . Robots Corrupted . | . . . . . . Combat Hostiles . | . . . . . . Parts Fried 2 | . . 2 . . . Impact Corruptions . | . . . . . . Robots Melted . | . . . . . . Combat Hostiles . | . . . . . . Parts Melted 1 | 1 . . . . . Heat Transferred 350 | 200 . 150 . . . Parts Sabotaged . | . . . . . . Parts Stolen . | . . . . . . Parts Stripped . | . . . . . . Power Chain Reactions 3 | . . 3 . . . Missiles Intercepted . | . . . . . . Alert | -11 -10 -9 -9 -8 -7 ------- Run | Scr Mat Mat Min Mat Fac Peak Influence 455 | 20 270 455 177 76 39 Initial 177 | . 13 113 177 41 34 Average 141 | 7 89 295 133 54 29 Maximum Alert Level 2 | . 1 2 . . . Low Security (%) 73 | 100 88 24 100 100 100 Level 1 24 | . 11 67 . . . Level 2 2 | . . 7 . . . Level 3 . | . . . . . . Level 4 . | . . . . . . Level 5 . | . . . . . . High Security . | . . . . . . Max Security . | . . . . . . Squads Dispatched 6 | . 3 2 . 1 . Investigation 2 | . 1 1 . . . Extermination . | . . . . . . Reinforcement 4 | . 2 1 . 1 . Assault . | . . . . . . Garrison . | . . . . . . Intercept . | . . . . . . Construction Impeded . | . . . . . . Haulers Reinforced . | . . . . . . Stealth | -11 -10 -9 -9 -8 -7 --------- Run | Scr Mat Mat Min Mat Fac Distress Signals 3 | . 1 2 . . . Communications Jammed . | . . . . . . Distress Signals . | . . . . . . Times Spotted 76 | . 14 18 21 19 4 Peak Tracking Total 16 | . 6 5 15 16 4 Tactical Retreats 8 | . 1 1 4 2 . Traps | -11 -10 -9 -9 -8 -7 ------- Run | Scr Mat Mat Min Mat Fac Traps Triggered 2 | . 1 1 . . . Indirectly . | . . . . . . Trap Hack Attempts . | . . . . . . Triggered . | . . . . . . Disarmed . | . . . . . . Reprogrammed . | . . . . . . Reused . | . . . . . . Traps Extracted . | . . . . . . Installed . | . . . . . . Triggered . | . . . . . . Machines | -11 -10 -9 -9 -8 -7 ---------- Run | Scr Mat Mat Min Mat Fac Machines Disabled 5 | . 1 4 . . . Max in Single Turn 3 | . 1 3 . . . Machines Sabotaged . | . . . . . . Garrisons Compromised . | . . . . . . Overloaded Fab Kills . | . . . . . . Fab Network Shutdowns . | . . . . . . Hacking | -11 -10 -9 -9 -8 -7 --------- Run | Scr Mat Mat Min Mat Fac Machines Accessed 5 | . 2 3 . . . Terminals 4 | . 1 3 . . . Fabricators . | . . . . . . Repair Stations . | . . . . . . Recycling Units 1 | . 1 . . . . Scanalyzers . | . . . . . . Garrison Access . | . . . . . . Total Hacks 13 | . 4 9 . . . Successful 9 | . 3 6 . . . Failed 4 | . 1 3 . . . Catastrophic 2 | . 1 1 . . . Database Lockouts . | . . . . . . Manual 5 | . 1 4 . . . Terminals 10 | . 1 9 . . . Fabricators . | . . . . . . Repair Stations . | . . . . . . Recycling Units 3 | . 3 . . . . Scanalyzers . | . . . . . . Garrison Access . | . . . . . . Terminal Hacks 6 | . . 6 . . . Record 4 | . . 4 . . . Prototype ID Bank 1 | . . 1 . . . Terminal Index 1 | . . 1 . . . Fabricator Hacks . | . . . . . . Repair Station Hacks . | . . . . . . Recycling Unit Hacks 3 | . 3 . . . . Process 1 | . 1 . . . . Report Inventory 1 | . 1 . . . . Retrieve Matter 1 | . 1 . . . . Scanalyzer . | . . . . . . Garrison Access Hacks . | . . . . . . Unauthorized Hacks . | . . . . . . Terminals . | . . . . . . Fabricators . | . . . . . . Repair Stations . | . . . . . . Recycling Units . | . . . . . . Scanalyzers . | . . . . . . Garrison Access . | . . . . . . Data Cores Recovered . | . . . . . . Used . | . . . . . . Hacking Detections 4 | . 2 2 . . . Full Trace Events . | . . . . . . Feedback Events . | . . . . . . Feedback Blocked . | . . . . . . Robot Schematics Acquired . | . . . . . . Robots Built . | . . . . . . Matter . | . . . . . . Time . | . . . . . . Total Robot Build Rating . | . . . . . . Part Schematics Acquired . | . . . . . . Parts Built . | . . . . . . Matter . | . . . . . . Time . | . . . . . . Total Part Build Rating . | . . . . . . Parts Repaired . | . . . . . . Time . | . . . . . . Parts Recycled . | . . . . . . Recycled Matter 301 | . 301 . . . . Retrieved Matter 301 | . 301 . . . . Retrieved Components . | . . . . . . Parts Scanalyzed . | . . . . . . Part Schematics Acquired . | . . . . . . Parts Damaged . | . . . . . . Bothacking | -11 -10 -9 -9 -8 -7 ------------ Run | Scr Mat Mat Min Mat Fac Used RIF Installer . | . . . . . . Robots Hacked . | . . . . . . Non-combat . | . . . . . . Combat . | . . . . . . Robot Hacks Applied . | . . . . . . Relay Couplers Released . | . . . . . . Robots Rewired . | . . . . . . Allies Hacked . | . . . . . . Hacks Repelled . | . . . . . . Allies | -11 -10 -9 -9 -8 -7 -------- Run | Scr Mat Mat Min Mat Fac Total Allies . | . . . . . . Largest Group . | . . . . . . Highest-Rated Group . | . . . . . . Highest-Rated Ally . | . . . . . . Total Orders . | . . . . . . Ally Attacks . | . . . . . . Total Damage . | . . . . . . Kills . | . . . . . . Allies Corrupted . | . . . . . . Allies Melted . | . . . . . . Intel | -11 -10 -9 -9 -8 -7 ------- Run | Scr Mat Mat Min Mat Fac Robot Analysis Total . | . . . . . . Derelict Logs Recovered 1 | . . . 1 . . Drone Launches . | . . . . . . Drone Recoveries . | . . . . . . Exploration | -11 -10 -9 -9 -8 -7 ------------- Run | Scr Mat Mat Min Mat Fac Turns Passed 1123 | 112 375 341 114 107 74 Spaces Moved 1007 | 77 330 174 144 204 78 Core 392 | 2 . . 122 204 64 Treads 169 | . . 147 22 . . Legs . | . . . . . . Wheels 446 | 75 330 27 . . 14 Hover . | . . . . . . Flight . | . . . . . . Fastest Speed 50 | 50 80 86 50 50 50 Average Speed 80 | 83 80 135 64 50 70 Slowest Speed 145 | 90 100 145 145 100 100 Overloaded Moves . | . . . . . . Propulsion Burnouts . | . . . . . . Robots Hopped . | . . . . . . Cave-ins Triggered . | . . . . . . Exploration Rate (%) 26 | 5 51 25 40 33 2 Regions Visited 5 Branch Regions 1 Pre-discovered Areas 1 | . . . 1 . . Known Exits Taken . | . . . . . . Unknown Exits Taken 5 | 1 1 1 1 1 . Scrap Searched 1 | . . . 1 . . Spaces Dug . | . . . . . . Terrain Destroyed 81 | . 14 47 20 . . Melee . | . . . . . . Projectile . | . . . . . . AOE 81 | . 14 47 20 . . Terrain Rammed . | . . . . . . Walls Destroyed . | . . . . . . Machines Disabled . | . . . . . . Actions | -11 -10 -9 -9 -8 -7 --------- Run | Scr Mat Mat Min Mat Fac Total 1172 | 106 381 226 155 209 95 Wait 15 | 3 . . . . 12 Move 1002 | 76 329 173 143 203 78 Hop . | . . . . . . Pick Up 18 | 7 6 2 . 2 1 Fast Attach 20 | 8 2 8 1 1 . Attach 6 | . . 1 3 . 2 Detach 3 | 1 . 1 . 1 . Swap 12 | 1 5 4 2 . . Drop 19 | 2 8 7 . 2 . Fire 77 | 8 31 30 6 . 2 Melee . | . . . . . . Ram . | . . . . . . Kick . | . . . . . . Crush . | . . . . . . Escape Stasis . | . . . . . . Rewire . | . . . . . . Trap . | . . . . . . Miscellaneous . | . . . . . . Route ------- -11/Scrapyard -10/Materials (discovered 2 exits: *Mat x2) -9/Materials -9/Mines -8/Materials -7/Factory History --------- Turn | Location | Event 53 | -11/Scrapyard | Discovered new exit (range 15) 113 | -11/Scrapyard | Entered Materials 213 | -10/Materials | Discovered new exit (range 12) 309 | -10/Materials | Build established: Mutant 450 | -10/Materials | Discovered new exit (range 11) 488 | -10/Materials | Entered another Materials area 488 | -9/Materials | Evolved 2 slots: Propulsion x1, Utility x1 774 | -9/Materials | Discovered new exit (range 12) 829 | -9/Materials | Entered Mines 830 | -9/Mines | Assembled infested the area 830 | -9/Mines | Met a Derelict bent on vengeance 878 | -9/Mines | Released all parts (5) 879 | -9/Mines | Core integrity fell below 50% 889 | -9/Mines | Destroyed 8 combat bots 891 | -9/Mines | Learned location of Zion (-7) 898 | -9/Mines | Discovered new exit (range 9) 908 | -9/Mines | Lost 7 parts (2p2n3w) 943 | -9/Mines | Entered Materials 943 | -8/Materials | Evolved 2 slots: Power x1, Weapon x1 1047 | -8/Materials | Discovered new exit (range 5) 1050 | -8/Materials | Entered Factory 1050 | -7/Factory | Evolved 2 slots: Utility x2 1108 | -7/Factory | Core integrity fell below 50% 1120 | -7/Factory | Core integrity fell below 20% 1124 | -7/Factory | Destroyed by S-27 Virus with Autogun Last Messages --------------- 01022_ Electrolysis Chamber disabled. 01023_ O-16 Technician: "IFF HANDSHAKE FAILED. SECURING TERMINAL." 01026_ Adv. Treads destroyed. 01029_ K-01 Serf collects debris. 01046_ ALERT: Hostiles spotted, dispatching reinforcements to Terminal M005. 01047_ EXIT=FOUND PARAMETERS=UTILITY_2 LOCATION=UNKNOWN GOAL=ESCAPE 01061_ K-01 Serf knocked back. 01062_ K-01 Serf destroyed. 01064_ Acquired 3 matter. 01066_ Acquired Wheel. 01081_ Wheel destroyed. 01089_ S-27 Virus destroyed. 01100_ Assault Cannon destroyed. 01100_ Acquired 26 matter. 01110_ Connecting with Recycling Unit... 01110_ Current location identified: Factory Map ----- +----------------------------------------------------+ | ??????????????????????# #?????????????? | | ??????????????????????# #?????????????? | | ??????????????????????# #?????????????? | | ??????????????????????# #?????????????? | | ????????????? ????????# #?????????????? | | ????????????"""???????# #?????????????? | | ???????? ? """" ??????# #?????????????? | | ??????? """" ?????# #?????????????? | | ?????? ????# #?????????????? | | ?????? ###########+############???????? | | ?????? #???????? | | ?????? #???????? | | ?????? [[[ #???????? | | ?????? [[[ #???????? | | ??????? """" """" [[ #???????? | | ???????????"" """" ##########???????? | | ????????????? """" #????????????????? | | ??????????????"""" ] #????????????????? | | ??????????????"""" #????????????????? | | ???????????"" """" #????????????????? | | ?????????? #????????????????? | | ??????????? #????????????????? | | ???????????######### #????????????????? | | ???????????????????# #????????????????? | | ???????????????????# """ss""" #????????????????? | | ???????????????????# "Y @ """ +????????????????? | | ???????????????????# """ s""" #????????????????? | | ???????????????????# #????????????????? | | ???????????????????# +????????????????? | | ???????????????????########+#+###????????????????? | | ?????????????????????????????????????????????????? | | ?????????????????????????????????????????????????? | | ?????????????????????????????????????????????????? | | ?????????????????????????????????????????????????? | | ?????????????????????????????????????????????????? | | ?????????????????????????????????????????????????? | | ?????????????????????????????????????????????????? | | ?????????????????????????????????????????????????? | | ?????????????????????????????????????????????????? | | ?????????????????????????????????????????????????? | | ?????????????????????????????????????????????????? | | ?????????????????????????????????????????????????? | | ?????????????????????????????????????????????????? | | ?????????????????????????????????????????????????? | | ?????????????????????????????????????????????????? | | ?????????????????????????????????????????????????? | | ?????????????????????????????????????????????????? | | ?????????????????????????????????????????????????? | | ?????????????????????????????????????????????????? | | ?????????????????????????????????????????????????? | +----------------------------------------------------+ Best States ------------- Heat Dissipation 34 Energy Generation 10 Energy Capacity 250 Matter Stores 300 Matter Capacity 300 Sight Range 18 Terrain Scan Range 16 Terrain Scan Density 60 Armor Coverage 150 Evasion (%) 50 Recoil Reduction 3 Item Schematics ----------------- None Robot Schematics ------------------ None Fabricated ------------ Nothing Alien Tech Used ----------------- None Achievements -------------- Let's See Who's Tougher Challenges ------------ None Game ------ Seed ArmorPotentialRail Manual? 0 Play Time 00:19:08 Cumulative 42.5 hours Start 2020.09.19 @ 00:54:39 End 2020.09.19 @ 01:13:11 Sessions 1 Manual Loads 0 Difficulty Rogue Special Mode None Game No. 60 Rogue 60 Adventurer 0 Explorer 0 Win Type - Total 0 Types 0/0/0/0/0/0/0/0/0 Lore% 31 Gallery% 39 Achievement% 22 Wizard Run 0 Options --------- ASCII 1 Keyboard 1 Movement Numpad Keybinds 0 Fullscreen 2 Font 18/X11Bold Map View 76x50 Tactical HUD 1 Map Filters NONE Filters NONE Steam 0 RUN: 8dce8656-0f04-479b-b398-690390f847b1